[Event "FIDE World Rapid Chess Championship 2021"]
[White "Gabuzyan, Hovhannes"]
[Black "Kuzmicz, Krystian"]
[WhiteFideId "13303732"]
[BlackFideId "1119125"]
[WhiteElo "2535"]
[BlackElo "2314"]
[Result "1/2-1/2"]
[Round "02"]
[TimeControl "900+10"]
[Date "2021.12.26"]
[WhiteClock "0:09:01"]
[BlackClock "0:01:33"]

1. c4 {[%clk 0:15:00]}  g6 {[%clk 0:15:00]} 2. g3 {[%clk 0:15:00]}  Bg7 {[%clk 0:15:00]} 3. Bg2 {[%clk 0:15:00]}  e5 {[%clk 0:15:00]} 4. Nc3 {[%clk 0:15:00]}  d6 {[%clk 0:15:00]} 5. d3 {[%clk 0:15:00]}  f5 {[%clk 0:15:00]} 6. e4 {[%clk 0:15:00]}  Nc6 {[%clk 0:15:00]} 7. Nge2 {[%clk 0:15:00]}  Nf6 {[%clk 0:15:00]} 8. exf5 {[%clk 0:15:00]}  Bxf5 {[%clk 0:15:00]} 9. O-O {[%clk 0:15:00]}  O-O {[%clk 0:15:00]} 10. a3 {[%clk 0:15:00]}  Qd7 {[%clk 0:15:00]} 11. Bg5 {[%clk 0:15:00]}  h6 {[%clk 0:15:00]} 12. Bxf6 {[%clk 0:15:00]}  Bxf6 {[%clk 0:15:00]} 13. Nd5 {[%clk 0:15:00]}  Bg7 {[%clk 0:15:00]} 14. b4 {[%clk 0:15:00]}  Rae8 {[%clk 0:15:00]} 15. b5 {[%clk 0:15:00]}  Nd8 {[%clk 0:15:00]} 16. Re1 {[%clk 0:15:00]}  Ne6 {[%clk 0:15:00]} 17. Ne3 {[%clk 0:15:00]}  Nc5 {[%clk 0:15:00]} 18. Nc1 {[%clk 0:15:00]}  Bh3 {[%clk 0:15:00]} 19. Nb3 {[%clk 0:15:00]}  Bxg2 {[%clk 0:15:00]} 20. Kxg2 {[%clk 0:15:00]}  e4 {[%clk 0:15:00]} 21. Nxc5 {[%clk 0:15:00]}  dxc5 {[%clk 0:15:00]} 22. dxe4 {[%clk 0:15:00]}  Qf7 {[%clk 0:15:00]} 23. Ra2 {[%clk 0:15:00]}  Rxe4 {[%clk 0:15:00]} 24. Nd5 {[%clk 0:15:00]}  Rxc4 {[%clk 0:15:00]} 25. Re7 {[%clk 0:15:00]}  Rd4 {[%clk 0:15:00]} 26. Rxf7 {[%clk 0:15:00]}  Rxd1 {[%clk 0:15:00]} 27. Rd7 {[%clk 0:15:00]}  Kh8 {[%clk 0:15:00]} 28. Re2 {[%clk 0:15:00]}  c6 {[%clk 0:15:00]} 29. bxc6 {[%clk 0:15:00]}  bxc6 {[%clk 0:15:00]} 30. Nb6 {[%clk 0:15:00]}  Rxd7 {[%clk 0:15:00]} 31. Nxd7 {[%clk 0:15:00]}  Rf5 {[%clk 0:15:00]} 32. Re6 {[%clk 0:15:00]}  Bd4 {[%clk 0:04:19]} 33. f4 {[%clk 0:11:01]}  Rd5 {[%clk 0:04:19]} 34. Nb8 {[%clk 0:11:01]}  c4 {[%clk 0:04:19]} 35. Nxc6 {[%clk 0:11:01]}  Bb2 {[%clk 0:04:19]} 36. Kf3 {[%clk 0:11:06]}  c3 {[%clk 0:02:25]} 37. Nb4 {[%clk 0:11:06]}  Rd2 {[%clk 0:02:09]} 38. Re8+ {[%clk 0:08:55]}  Kg7 {[%clk 0:02:09]} 39. Re7+ {[%clk 0:08:55]}  Kf6 {[%clk 0:02:09]} 40. Rxa7 {[%clk 0:08:55]}  c2 {[%clk 0:02:09]} 41. Ra6+ {[%clk 0:08:55]}  Kg7 {[%clk 0:02:09]} 42. Ra7+ {[%clk 0:08:55]}  Kf8 {[%clk 0:02:09]} 43. Ra8+ {[%clk 0:08:55]}  Kf7 {[%clk 0:01:33]} 44. Ra7+ {[%clk 0:09:01]}  Ke8 {[%clk 0:01:33]} 45. Ra8+ {[%clk 0:09:01]}  Kd7 {[%clk 0:01:33]} 46. Ra7+ {[%clk 0:09:01]}  Ke8 {[%clk 0:01:33]} 47. Ra8+ {[%clk 0:09:01]} 1/2-1/2


[Site "http://www.Chess.com"]

[Event "FIDE World Rapid Chess Championship 2021"]
[White "Asadli, Vugar"]
[Black "Mastrovasilis, Dimitrios"]
[WhiteFideId "13405764"]
[BlackFideId "4202694"]
[WhiteElo "2309"]
[BlackElo "2534"]
[Result "0-1"]
[Round "02"]
[TimeControl "900+10"]
[Date "2021.12.26"]
[WhiteClock "0:03:32"]
[BlackClock "0:03:15"]

1. e4 {[%clk 0:15:00]}  e5 {[%clk 0:15:00]} 2. Nf3 {[%clk 0:15:00]}  Nc6 {[%clk 0:15:00]} 3. Bc4 {[%clk 0:15:00]}  Nf6 {[%clk 0:15:00]} 4. d3 {[%clk 0:15:00]}  Be7 {[%clk 0:15:00]} 5. O-O {[%clk 0:15:00]}  O-O {[%clk 0:15:00]} 6. Nc3 {[%clk 0:15:00]}  d6 {[%clk 0:15:00]} 7. a3 {[%clk 0:15:00]}  Bg4 {[%clk 0:15:00]} 8. h3 {[%clk 0:15:00]}  Bh5 {[%clk 0:15:00]} 9. Nd5 {[%clk 0:15:00]}  Nxd5 {[%clk 0:15:00]} 10. Bxd5 {[%clk 0:15:00]}  Qc8 {[%clk 0:15:00]} 11. g4 {[%clk 0:15:00]}  Bg6 {[%clk 0:15:00]} 12. Be3 {[%clk 0:15:00]}  Nd8 {[%clk 0:15:00]} 13. Ne1 {[%clk 0:15:00]}  c6 {[%clk 0:15:00]} 14. Ba2 {[%clk 0:15:00]}  Ne6 {[%clk 0:15:00]} 15. Ng2 {[%clk 0:15:00]}  Qd7 {[%clk 0:15:00]} 16. h4 {[%clk 0:15:00]}  h6 {[%clk 0:15:00]} 17. f3 {[%clk 0:15:00]}  d5 {[%clk 0:15:00]} 18. Qe1 {[%clk 0:15:00]}  Rae8 {[%clk 0:15:00]} 19. Qg3 {[%clk 0:15:00]}  Bc5 {[%clk 0:15:00]} 20. Bxc5 {[%clk 0:15:00]}  Nxc5 {[%clk 0:15:00]} 21. h5 {[%clk 0:15:00]}  Bh7 {[%clk 0:15:00]} 22. Rae1 {[%clk 0:15:00]}  dxe4 {[%clk 0:07:03]} 23. fxe4 {[%clk 0:06:44]}  Qd4+ {[%clk 0:07:03]} 24. Qf2 {[%clk 0:06:44]}  Qxf2+ {[%clk 0:07:03]} 25. Rxf2 {[%clk 0:06:44]}  Ne6 {[%clk 0:07:03]} 26. Ref1 {[%clk 0:06:44]}  f6 {[%clk 0:07:03]} 27. Nh4 {[%clk 0:06:44]}  Kh8 {[%clk 0:04:15]} 28. Bxe6 {[%clk 0:06:21]}  Rxe6 {[%clk 0:04:15]} 29. Ng6+ {[%clk 0:06:21]}  Bxg6 {[%clk 0:04:15]} 30. hxg6 {[%clk 0:06:21]}  Kg8 {[%clk 0:04:15]} 31. Kg2 {[%clk 0:06:21]}  Rd8 {[%clk 0:04:15]} 32. Kg3 {[%clk 0:06:21]}  Kf8 {[%clk 0:04:15]} 33. g5 {[%clk 0:05:33]}  hxg5 {[%clk 0:03:29]} 34. Rh1 {[%clk 0:05:33]}  Ke7 {[%clk 0:03:29]} 35. Rh7 {[%clk 0:05:33]}  Rg8 {[%clk 0:03:29]} 36. Kg4 {[%clk 0:05:33]}  Rd6 {[%clk 0:03:29]} 37. Kf5 {[%clk 0:05:33]}  a5 {[%clk 0:03:29]} 38. b4 {[%clk 0:04:51]}  a4 {[%clk 0:03:30]} 39. Rd2 {[%clk 0:04:51]}  b6 {[%clk 0:03:30]} 40. c3 {[%clk 0:04:51]}  c5 {[%clk 0:03:30]} 41. bxc5 {[%clk 0:04:51]}  bxc5 {[%clk 0:03:30]} 42. Rb2 {[%clk 0:04:51]}  Rxd3 {[%clk 0:02:40]} 43. Rb7+ {[%clk 0:03:32]}  Rd7 {[%clk 0:02:40]} 44. Rb6 {[%clk 0:03:32]}  Rd6 {[%clk 0:02:40]} 45. Rb5 {[%clk 0:03:32]}  Rd3 {[%clk 0:02:40]} 46. Rxc5 {[%clk 0:03:32]}  Rf3+ {[%clk 0:02:40]} 47. Kg4 {[%clk 0:03:32]}  Rf4+ {[%clk 0:02:40]} 48. Kg3 {[%clk 0:03:32]}  Rxe4 {[%clk 0:02:40]} 49. Rc7+ {[%clk 0:03:32]}  Ke6 {[%clk 0:02:40]} 50. Rhxg7 {[%clk 0:03:32]}  Rxg7 {[%clk 0:02:40]} 51. Rxg7 {[%clk 0:03:32]}  Kf5 {[%clk 0:02:40]} 52. Rg8 {[%clk 0:03:32]}  Re3+ {[%clk 0:03:15]} 0-1


[Site "http://www.Chess.com"]

[Event "FIDE World Rapid Chess Championship 2021"]
[White "Tologontegin, Semetey"]
[Black "Klekowski, Maciej"]
[WhiteFideId "13800574"]
[BlackFideId "1132717"]
[WhiteElo "2300"]
[BlackElo "2528"]
[Result "0-1"]
[Round "02"]
[TimeControl "900+10"]
[Date "2021.12.26"]
[WhiteClock "0:00:18"]
[BlackClock "0:02:26"]

1. d4 {[%clk 0:15:00]}  Nf6 {[%clk 0:15:00]} 2. Nc3 {[%clk 0:15:00]}  d5 {[%clk 0:15:00]} 3. Bf4 {[%clk 0:15:00]}  e6 {[%clk 0:15:00]} 4. Nb5 {[%clk 0:15:00]}  Na6 {[%clk 0:15:00]} 5. e3 {[%clk 0:15:00]}  c6 {[%clk 0:15:00]} 6. Nc3 {[%clk 0:15:00]}  Nc7 {[%clk 0:15:00]} 7. Nf3 {[%clk 0:15:00]}  Be7 {[%clk 0:15:00]} 8. Bd3 {[%clk 0:15:00]}  O-O {[%clk 0:15:00]} 9. O-O {[%clk 0:15:00]}  Nce8 {[%clk 0:15:00]} 10. Ne5 {[%clk 0:15:00]}  c5 {[%clk 0:15:00]} 11. dxc5 {[%clk 0:15:00]}  Bxc5 {[%clk 0:15:00]} 12. e4 {[%clk 0:15:00]}  d4 {[%clk 0:15:00]} 13. Ne2 {[%clk 0:15:00]}  Nh5 {[%clk 0:15:00]} 14. Bd2 {[%clk 0:15:00]}  f6 {[%clk 0:15:00]} 15. Nf3 {[%clk 0:15:00]}  e5 {[%clk 0:15:00]} 16. c3 {[%clk 0:15:00]}  dxc3 {[%clk 0:15:00]} 17. Bc4+ {[%clk 0:15:00]}  Kh8 {[%clk 0:15:00]} 18. Bxc3 {[%clk 0:15:00]}  Nd6 {[%clk 0:15:00]} 19. Bd5 {[%clk 0:15:00]}  Bg4 {[%clk 0:15:00]} 20. Qd3 {[%clk 0:15:00]}  Qe8 {[%clk 0:15:00]} 21. h3 {[%clk 0:15:00]}  Bd7 {[%clk 0:15:00]} 22. Nd2 {[%clk 0:04:49]}  Bb5 {[%clk 0:06:58]} 23. Nc4 {[%clk 0:02:13]}  Nxc4 {[%clk 0:06:58]} 24. Bxc4 {[%clk 0:02:13]}  Bc6 {[%clk 0:06:58]} 25. g4 {[%clk 0:01:50]}  Rd8 {[%clk 0:04:32]} 26. Qf3 {[%clk 0:01:50]}  Qg6 {[%clk 0:04:32]} 27. Kh2 {[%clk 0:01:50]}  Nf4 {[%clk 0:04:32]} 28. Nxf4 {[%clk 0:01:50]}  exf4 {[%clk 0:04:32]} 29. Bd5 {[%clk 0:00:49]}  Bxd5 {[%clk 0:04:01]} 30. exd5 {[%clk 0:00:49]}  Qg5 {[%clk 0:04:01]} 31. Rad1 {[%clk 0:00:49]}  Rfe8 {[%clk 0:04:01]} 32. Rd3 {[%clk 0:00:49]}  Bd6 {[%clk 0:04:01]} 33. Re1 {[%clk 0:00:49]}  Rxe1 {[%clk 0:04:01]} 34. Bxe1 {[%clk 0:00:49]}  Re8 {[%clk 0:04:01]} 35. Bd2 {[%clk 0:00:49]}  f5 {[%clk 0:03:30]} 36. gxf5 {[%clk 0:00:34]}  Qxf5 {[%clk 0:03:30]} 37. Bc3 {[%clk 0:00:34]}  h5 {[%clk 0:03:30]} 38. Rd1 {[%clk 0:00:34]}  Kh7 {[%clk 0:03:30]} 39. Rg1 {[%clk 0:00:34]}  g6 {[%clk 0:03:30]} 40. Rd1 {[%clk 0:00:34]}  Kh6 {[%clk 0:02:32]} 41. a3 {[%clk 0:00:25]}  g5 {[%clk 0:02:32]} 42. Bb4 {[%clk 0:00:25]}  g4 {[%clk 0:02:32]} 43. Qd3 {[%clk 0:00:25]}  Qf6 {[%clk 0:02:32]} 44. Bxd6 {[%clk 0:00:25]}  Qxd6 {[%clk 0:02:32]} 45. hxg4 {[%clk 0:00:25]}  f3+ {[%clk 0:02:32]} 46. Kg1 {[%clk 0:00:25]}  hxg4 {[%clk 0:02:32]} 47. Qf5 {[%clk 0:00:25]}  Re5 {[%clk 0:02:32]} 48. Qf4+ {[%clk 0:00:25]}  Kg6 {[%clk 0:02:32]} 49. Rd4 {[%clk 0:00:25]}  Qe7 {[%clk 0:02:26]} 50. d6 {[%clk 0:00:18]}  Re1+ {[%clk 0:02:26]} 0-1


[Site "http://www.Chess.com"]

[Event "FIDE World Rapid Chess Championship 2021"]
[White "Klimkowski, Jan"]
[Black "Moroni, Luca Jr"]
[WhiteFideId "21856222"]
[BlackFideId "865834"]
[WhiteElo "2211"]
[BlackElo "2519"]
[Result "1/2-1/2"]
[Round "02"]
[TimeControl "900+10"]
[Date "2021.12.26"]
[WhiteClock "0:00:26"]
[BlackClock "0:01:36"]

1. e4 {[%clk 0:15:00]}  e5 {[%clk 0:15:00]} 2. Nf3 {[%clk 0:15:00]}  Nc6 {[%clk 0:15:00]} 3. Bb5 {[%clk 0:15:00]}  a6 {[%clk 0:15:00]} 4. Ba4 {[%clk 0:15:00]}  Nf6 {[%clk 0:15:00]} 5. O-O {[%clk 0:15:00]}  b5 {[%clk 0:15:00]} 6. Bb3 {[%clk 0:15:00]}  Bc5 {[%clk 0:15:00]} 7. c3 {[%clk 0:15:00]}  d6 {[%clk 0:15:00]} 8. d4 {[%clk 0:15:00]}  Bb6 {[%clk 0:15:00]} 9. Be3 {[%clk 0:15:00]}  O-O {[%clk 0:15:00]} 10. Nbd2 {[%clk 0:15:00]}  Rb8 {[%clk 0:15:00]} 11. Re1 {[%clk 0:15:00]}  h6 {[%clk 0:15:00]} 12. h3 {[%clk 0:15:00]}  Re8 {[%clk 0:15:00]} 13. dxe5 {[%clk 0:15:00]}  Bxe3 {[%clk 0:15:00]} 14. exf6 {[%clk 0:15:00]}  Bxd2 {[%clk 0:15:00]} 15. Qxd2 {[%clk 0:15:00]}  Qxf6 {[%clk 0:15:00]} 16. Re3 {[%clk 0:15:00]}  Be6 {[%clk 0:15:00]} 17. Bxe6 {[%clk 0:15:00]}  Qxe6 {[%clk 0:15:00]} 18. Nd4 {[%clk 0:15:00]}  Nxd4 {[%clk 0:15:00]} 19. cxd4 {[%clk 0:15:00]}  c5 {[%clk 0:15:00]} 20. d5 {[%clk 0:15:00]}  Qf6 {[%clk 0:15:00]} 21. Rae1 {[%clk 0:15:00]}  b4 {[%clk 0:15:00]} 22. b3 {[%clk 0:15:00]}  a5 {[%clk 0:15:00]} 23. g3 {[%clk 0:15:00]}  a4 {[%clk 0:15:00]} 24. f4 {[%clk 0:15:00]}  axb3 {[%clk 0:15:00]} 25. axb3 {[%clk 0:15:00]}  c4 {[%clk 0:15:00]} 26. bxc4 {[%clk 0:15:00]}  b3 {[%clk 0:15:00]} 27. Rb1 {[%clk 0:07:43]}  b2 {[%clk 0:06:24]} 28. Kh2 {[%clk 0:04:36]}  Rb7 {[%clk 0:05:49]} 29. e5 {[%clk 0:04:36]}  dxe5 {[%clk 0:03:45]} 30. Rxb2 {[%clk 0:04:36]}  Rbe7 {[%clk 0:03:45]} 31. d6 {[%clk 0:04:36]}  Re6 {[%clk 0:03:45]} 32. fxe5 {[%clk 0:02:48]}  Rxe5 {[%clk 0:02:50]} 33. Rxe5 {[%clk 0:02:48]}  Qxe5 {[%clk 0:02:50]} 34. d7 {[%clk 0:02:48]}  Rd8 {[%clk 0:02:50]} 35. Rb7 {[%clk 0:02:28]}  Qc5 {[%clk 0:02:54]} 36. Qe2 {[%clk 0:02:28]}  Kf8 {[%clk 0:02:54]} 37. h4 {[%clk 0:00:30]}  Qc6 {[%clk 0:01:12]} 38. Qb2 {[%clk 0:00:30]}  Rxd7 {[%clk 0:01:12]} 39. Rxd7 {[%clk 0:00:30]}  Qxd7 {[%clk 0:01:12]} 40. Qb8+ {[%clk 0:00:30]}  Ke7 {[%clk 0:01:12]} 41. Qe5+ {[%clk 0:00:30]}  Kf8 {[%clk 0:01:12]} 42. Qb8+ {[%clk 0:00:30]}  Ke7 {[%clk 0:01:12]} 43. Qe5+ {[%clk 0:00:30]}  Kf8 {[%clk 0:01:12]} 44. Qc3 {[%clk 0:00:30]}  Qf5 {[%clk 0:01:12]} 45. c5 {[%clk 0:00:30]}  Qf2+ {[%clk 0:01:12]} 46. Kh1 {[%clk 0:00:30]}  Qf1+ {[%clk 0:01:12]} 47. Kh2 {[%clk 0:00:30]}  Qf2+ {[%clk 0:01:12]} 48. Kh1 {[%clk 0:00:26]}  Qf1+ {[%clk 0:01:36]} 49. Kh2 {[%clk 0:00:26]} 1/2-1/2


[Site "http://www.Chess.com"]

[Event "FIDE World Rapid Chess Championship 2021"]
[White "Lopusiewicz, Piotr"]
[Black "Petrosyan, Manuel"]
[WhiteFideId "1116029"]
[BlackFideId "13300857"]
[WhiteElo "2197"]
[BlackElo "2514"]
[Result "0-1"]
[Round "02"]
[TimeControl "900+10"]
[Date "2021.12.26"]
[WhiteClock "0:03:26"]
[BlackClock "0:10:52"]

1. d4 {[%clk 0:15:00]}  Nf6 {[%clk 0:15:00]} 2. c4 {[%clk 0:15:00]}  e6 {[%clk 0:15:00]} 3. Nf3 {[%clk 0:15:00]}  d5 {[%clk 0:15:00]} 4. Nc3 {[%clk 0:15:00]}  Bb4 {[%clk 0:15:00]} 5. Bg5 {[%clk 0:15:00]}  dxc4 {[%clk 0:15:00]} 6. e4 {[%clk 0:15:00]}  h6 {[%clk 0:15:00]} 7. Bxf6 {[%clk 0:15:00]}  Qxf6 {[%clk 0:15:00]} 8. Bxc4 {[%clk 0:15:00]}  c5 {[%clk 0:15:00]} 9. e5 {[%clk 0:15:00]}  Qd8 {[%clk 0:15:00]} 10. O-O {[%clk 0:15:00]}  cxd4 {[%clk 0:15:00]} 11. Ne4 {[%clk 0:15:00]}  O-O {[%clk 0:15:00]} 12. a3 {[%clk 0:15:00]}  Be7 {[%clk 0:15:00]} 13. Qd2 {[%clk 0:15:00]}  Bd7 {[%clk 0:15:00]} 14. Rfd1 {[%clk 0:15:00]}  Ba4 {[%clk 0:15:00]} 15. b3 {[%clk 0:15:00]}  Bc6 {[%clk 0:15:00]} 16. Ng3 {[%clk 0:15:00]}  Bxf3 {[%clk 0:15:00]} 17. gxf3 {[%clk 0:15:00]}  Nc6 {[%clk 0:15:00]} 18. f4 {[%clk 0:15:00]}  Na5 {[%clk 0:15:00]} 19. Qxd4 {[%clk 0:15:00]}  Qxd4 {[%clk 0:15:00]} 20. Rxd4 {[%clk 0:15:00]}  b5 {[%clk 0:15:00]} 21. Bxb5 {[%clk 0:15:00]}  Nxb3 {[%clk 0:15:00]} 22. Rd7 {[%clk 0:15:00]}  Nxa1 {[%clk 0:15:00]} 23. Rxe7 {[%clk 0:15:00]}  Nc2 {[%clk 0:15:00]} 24. Ne4 {[%clk 0:15:00]}  Nxa3 {[%clk 0:15:00]} 25. Bc6 {[%clk 0:15:00]}  Rac8 {[%clk 0:15:00]} 26. Bd7 {[%clk 0:15:00]}  Rc7 {[%clk 0:10:52]} 27. Nd6 {[%clk 0:03:26]}  Rd8 {[%clk 0:10:52]} 0-1


[Site "http://www.Chess.com"]

[Event "FIDE World Rapid Chess Championship 2021"]
[White "Czarnota, Pawel"]
[Black "Kanarek, Marcel"]
[WhiteFideId "1121219"]
[BlackFideId "1126822"]
[WhiteElo "2511"]
[BlackElo "2296"]
[Result "1-0"]
[Round "02"]
[TimeControl "900+10"]
[Date "2021.12.26"]
[WhiteClock "0:03:07"]
[BlackClock "0:00:19"]

1. e4 {[%clk 0:15:00]}  c5 {[%clk 0:15:00]} 2. Nf3 {[%clk 0:15:00]}  e6 {[%clk 0:15:00]} 3. d4 {[%clk 0:15:00]}  cxd4 {[%clk 0:15:00]} 4. Nxd4 {[%clk 0:15:00]}  Nf6 {[%clk 0:15:00]} 5. Nc3 {[%clk 0:15:00]}  Nc6 {[%clk 0:15:00]} 6. Nxc6 {[%clk 0:15:00]}  bxc6 {[%clk 0:15:00]} 7. Bd3 {[%clk 0:15:00]}  d5 {[%clk 0:15:00]} 8. O-O {[%clk 0:15:00]}  Be7 {[%clk 0:15:00]} 9. Qe2 {[%clk 0:15:00]}  O-O {[%clk 0:15:00]} 10. b3 {[%clk 0:15:00]}  Nd7 {[%clk 0:15:00]} 11. Bb2 {[%clk 0:15:00]}  Bf6 {[%clk 0:15:00]} 12. Rad1 {[%clk 0:15:00]}  g6 {[%clk 0:15:00]} 13. f4 {[%clk 0:15:00]}  Bg7 {[%clk 0:15:00]} 14. e5 {[%clk 0:15:00]}  c5 {[%clk 0:15:00]} 15. Nb5 {[%clk 0:15:00]}  a6 {[%clk 0:15:00]} 16. Nd6 {[%clk 0:15:00]}  c4 {[%clk 0:15:00]} 17. Bxc4 {[%clk 0:15:00]}  dxc4 {[%clk 0:15:00]} 18. Qxc4 {[%clk 0:15:00]}  Nb6 {[%clk 0:15:00]} 19. Qc5 {[%clk 0:15:00]}  Nd7 {[%clk 0:03:51]} 20. Qe3 {[%clk 0:06:48]}  Qb6 {[%clk 0:01:58]} 21. Bd4 {[%clk 0:03:29]}  Qc6 {[%clk 0:01:33]} 22. Rf2 {[%clk 0:03:29]}  a5 {[%clk 0:01:33]} 23. Rd3 {[%clk 0:03:29]}  Ra6 {[%clk 0:01:33]} 24. Rc3 {[%clk 0:03:07]}  Qa8 {[%clk 0:00:19]} 25. Rc7 {[%clk 0:03:07]}  Rd8 {[%clk 0:00:19]} 26. Nxc8 {[%clk 0:03:07]}  Qb8 {[%clk 0:00:19]} 27. Qc3 {[%clk 0:03:07]}  Qb4 {[%clk 0:00:19]} 28. Qxb4 {[%clk 0:03:07]}  axb4 {[%clk 0:00:19]} 29. Ne7+ {[%clk 0:03:07]}  Kf8 {[%clk 0:00:19]} 30. Nc6 {[%clk 0:03:07]}  Rda8 {[%clk 0:00:19]} 31. Nxb4 {[%clk 0:03:07]} 1-0


[Site "http://www.Chess.com"]

[Event "FIDE World Rapid Chess Championship 2021"]
[White "Shevchenko, Kirill"]
[Black "Lubczynski, Rafal"]
[WhiteFideId "14129574"]
[BlackFideId "1126091"]
[WhiteElo "2508"]
[BlackElo "2289"]
[Result "1/2-1/2"]
[Round "02"]
[TimeControl "900+10"]
[Date "2021.12.26"]
[WhiteClock "0:01:03"]
[BlackClock "0:01:23"]

1. d4 {[%clk 0:15:00]}  Nf6 {[%clk 0:15:00]} 2. Bg5 {[%clk 0:15:00]}  c5 {[%clk 0:15:00]} 3. Bxf6 {[%clk 0:15:00]}  gxf6 {[%clk 0:15:00]} 4. d5 {[%clk 0:15:00]}  Qb6 {[%clk 0:15:00]} 5. Nd2 {[%clk 0:15:00]}  f5 {[%clk 0:15:00]} 6. e3 {[%clk 0:15:00]}  Qxb2 {[%clk 0:15:00]} 7. Rb1 {[%clk 0:15:00]}  Qf6 {[%clk 0:15:00]} 8. Bd3 {[%clk 0:15:00]}  Qg6 {[%clk 0:15:00]} 9. Ngf3 {[%clk 0:15:00]}  d6 {[%clk 0:15:00]} 10. g4 {[%clk 0:15:00]}  Qxg4 {[%clk 0:15:00]} 11. Rg1 {[%clk 0:15:00]}  Qh3 {[%clk 0:15:00]} 12. Ng5 {[%clk 0:15:00]}  Qxh2 {[%clk 0:15:00]} 13. Ndf3 {[%clk 0:15:00]}  Qh5 {[%clk 0:15:00]} 14. Bb5+ {[%clk 0:15:00]}  Nd7 {[%clk 0:15:00]} 15. Ne6 {[%clk 0:15:00]}  Rb8 {[%clk 0:15:00]} 16. Be2 {[%clk 0:15:00]}  Qh6 {[%clk 0:15:00]} 17. Nfg5 {[%clk 0:04:01]}  Ne5 {[%clk 0:05:52]} 18. Bb5+ {[%clk 0:02:27]}  Bd7 {[%clk 0:05:52]} 19. Bxd7+ {[%clk 0:02:27]}  Kxd7 {[%clk 0:05:52]} 20. Qe2 {[%clk 0:02:27]}  fxe6 {[%clk 0:03:24]} 21. Qb5+ {[%clk 0:01:42]}  Kc8 {[%clk 0:03:24]} 22. Nxe6 {[%clk 0:01:42]}  Qh5 {[%clk 0:01:23]} 23. Qa5 {[%clk 0:01:03]}  Nf3+ {[%clk 0:01:23]} 24. Kf1 {[%clk 0:01:03]}  Nh2+ {[%clk 0:01:23]} 25. Ke1 {[%clk 0:01:03]}  Nf3+ {[%clk 0:01:23]} 26. Kf1 {[%clk 0:01:03]}  Nh2+ {[%clk 0:01:23]} 1/2-1/2


[Site "http://www.Chess.com"]

[Event "FIDE World Rapid Chess Championship 2021"]
[White "Mitrabha, Guha"]
[Black "Zilka, Stepan"]
[WhiteFideId "5057000"]
[BlackFideId "315303"]
[WhiteElo "2107"]
[BlackElo "2474"]
[Result "1-0"]
[Round "02"]
[TimeControl "900+10"]
[Date "2021.12.26"]
[WhiteClock "0:15:00"]
[BlackClock "0:15:00"]

1. d4 {[%clk 0:15:00]}  d5 {[%clk 0:15:00]} 2. c4 {[%clk 0:15:00]}  e6 {[%clk 0:15:00]} 3. Nf3 {[%clk 0:15:00]}  Nf6 {[%clk 0:15:00]} 4. g3 {[%clk 0:15:00]}  dxc4 {[%clk 0:15:00]} 5. Bg2 {[%clk 0:15:00]}  a6 {[%clk 0:15:00]} 6. O-O {[%clk 0:15:00]}  Nc6 {[%clk 0:15:00]} 7. Nbd2 {[%clk 0:15:00]}  Nxd4 {[%clk 0:15:00]} 8. Nxc4 {[%clk 0:15:00]}  Nxf3+ {[%clk 0:15:00]} 9. Bxf3 {[%clk 0:15:00]}  Bd6 {[%clk 0:15:00]} 10. Nxd6+ {[%clk 0:15:00]}  cxd6 {[%clk 0:15:00]} 11. b3 {[%clk 0:15:00]}  O-O {[%clk 0:15:00]} 12. Ba3 {[%clk 0:15:00]}  Ne8 {[%clk 0:15:00]} 13. Qd3 {[%clk 0:15:00]}  f5 {[%clk 0:15:00]} 14. Rfd1 {[%clk 0:15:00]}  e5 {[%clk 0:15:00]} 15. Qd5+ {[%clk 0:15:00]}  Kh8 {[%clk 0:15:00]} 16. Qxe5 {[%clk 0:15:00]}  Qf6 {[%clk 0:15:00]} 17. Bxd6 {[%clk 0:15:00]}  Nxd6 {[%clk 0:15:00]} 18. Qxd6 {[%clk 0:15:00]}  Qxd6 {[%clk 0:15:00]} 19. Rxd6 {[%clk 0:15:00]}  a5 {[%clk 0:15:00]} 20. Rc1 {[%clk 0:15:00]}  a4 {[%clk 0:15:00]} 21. Rc7 {[%clk 0:15:00]}  axb3 {[%clk 0:15:00]} 22. axb3 {[%clk 0:15:00]}  Ra2 {[%clk 0:15:00]} 23. Kg2 {[%clk 0:15:00]}  Rb2 {[%clk 0:15:00]} 24. Rb6 {[%clk 0:15:00]}  f4 {[%clk 0:15:00]} 25. gxf4 {[%clk 0:15:00]}  h6 {[%clk 0:15:00]} 26. e3 {[%clk 0:15:00]}  Rd8 {[%clk 0:15:00]} 27. Rg6 {[%clk 0:15:00]}  Bd7 {[%clk 0:15:00]} 28. Rxb7 {[%clk 0:15:00]}  Rd2 {[%clk 0:15:00]} 29. Bg4 {[%clk 0:15:00]}  Kh7 {[%clk 0:15:00]} 30. Rbb6 {[%clk 0:15:00]}  Rb2 {[%clk 0:15:00]} 31. Rgd6 {[%clk 0:15:00]} 1-0


[Site "http://www.Chess.com"]

[Event "FIDE World Rapid Chess Championship 2021"]
[White "Dubov, Daniil"]
[Black "Fridman, Daniel"]
[WhiteFideId "24126055"]
[BlackFideId "11600454"]
[WhiteElo "2735"]
[BlackElo "2542"]
[Result "1/2-1/2"]
[Round "02"]
[TimeControl "900+10"]
[Date "2021.12.26"]
[WhiteClock "0:13:11"]
[BlackClock "0:09:41"]

1. d4 {[%clk 0:15:13]}  d5 {[%clk 0:15:19]} 2. c4 {[%clk 0:15:21]}  e6 {[%clk 0:15:28]} 3. Nf3 {[%clk 0:15:28]}  Nf6 {[%clk 0:15:36]} 4. g3 {[%clk 0:15:36]}  dxc4 {[%clk 0:15:42]} 5. Bg2 {[%clk 0:15:44]}  c5 {[%clk 0:15:51]} 6. O-O {[%clk 0:15:51]}  Nc6 {[%clk 0:16:00]} 7. Qa4 {[%clk 0:15:46]}  Bd7 {[%clk 0:16:08]} 8. Qxc4 {[%clk 0:15:51]}  b5 {[%clk 0:16:15]} 9. Qd3 {[%clk 0:15:56]}  c4 {[%clk 0:16:22]} 10. Qd1 {[%clk 0:15:59]}  Rc8 {[%clk 0:15:53]} 11. Ne5 {[%clk 0:15:46]}  Nxe5 {[%clk 0:15:52]} 12. dxe5 {[%clk 0:15:54]}  Ng4 {[%clk 0:15:59]} 13. a4 {[%clk 0:15:58]}  b4 {[%clk 0:16:00]} 14. Qd4 {[%clk 0:15:47]}  h5 {[%clk 0:14:27]} 15. h3 {[%clk 0:15:44]}  Bc5 {[%clk 0:14:35]} 16. Qf4 {[%clk 0:15:47]}  Bxf2+ {[%clk 0:14:18]} 17. Rxf2 {[%clk 0:15:45]}  Nxf2 {[%clk 0:14:25]} 18. Qxf2 {[%clk 0:15:19]}  Bc6 {[%clk 0:10:54]} 19. Bxc6+ {[%clk 0:13:59]}  Rxc6 {[%clk 0:09:41]} 20. Nd2 {[%clk 0:13:11]} 1/2-1/2


[Site "http://www.Chess.com"]